bitfinex-derivatives/quotes_ETHF0:USTF0_20230401
["timestamp","ask_amount","ask_price","bid_price","bid_amount"]
[1680314514353,3.2078,1840.6,1839.8,3.2078]
[1680314514553,3.2078,1840.6,1839.9,1.0]
[1680314514950,3.2078,1840.6,1840.0,5.77766106]
[1680314515157,3.2078,1840.4,1840.0,5.77766106]
[1680314515553,3.2078,1840.4,1840.0,1.0]
[1680314515753,3.2078,1840.4,1839.9,6.07187168]
[1680314515960,3.2078,1841.0,1840.1,3.2261946]
[1680314516169,3.2078,1841.0,1840.1,3.2078]
[1680314516361,5.0,1841.4,1840.2,6.02263375]
[1680314516362,3.2078,1840.8,1840.2,6.02263375]
[1680314516756,3.2078,1840.8,1840.1,5.92541242]
[1680314516962,3.2078,1840.2,1840.0,0.39202692]
[1680314517158,3.2078,1840.4,1839.7,3.2078]
[1680314517463,3.2078,1840.2,1839.7,3.2078]
[1680314517973,3.2078,1840.2,1839.8,5.91157958]
[1680314518168,3.2078,1839.9,1839.2,5.0111]
[1680314518368,3.2078,1839.7,1839.0,15.42666289]
[1680314518669,3.2078,1839.7,1839.0,8.3354]
[1680314518670,1.0,1839.6,1839.0,8.3354]
[1680314518867,3.2078,1839.7,1839.1,6.06750759]
[1680314519064,3.2078,1839.5,1839.1,6.06750759]
[1680314519478,8.2078,1839.9,1839.1,7.06750759]
[1680314519668,3.2078,1839.9,1839.2,3.2078]
[1680314519868,1.0,1839.8,1839.2,3.2078]
[1680314520065,3.2078,1839.7,1839.3,5.86538013]
[1680314520369,3.2078,1839.7,1839.2,6.09891934]
[1680314520572,3.2078,1839.7,1839.2,3.2078]
[1680314520773,3.2078,1839.7,1839.0,8.3354]
[1680314521067,3.2078,1839.5,1839.0,5.1276]
[1680314521272,3.2078,1839.3,1838.6,3.2078]
[1680314521478,3.2078,1839.1,1838.6,3.2078]
[1680314521866,3.2078,1839.1,1838.7,6.01204797]
[1680314522268,3.2078,1839.1,1838.6,3.2078]
[1680314522469,3.2078,1839.8,1838.9,8.157]
[1680314522665,3.2078,1839.8,1839.0,3.2078]
[1680314522868,8.128,1840.2,1839.0,3.2078]
[1680314522869,0.55620476,1839.9,1839.0,3.79725069]
[1680314523072,3.2078,1840.1,1839.2,3.2078]
[1680314523277,3.2078,1840.1,1839.6,3.2078]
[1680314523477,3.2078,1840.1,1839.4,3.2078]
[1680314523674,3.2078,1840.1,1839.7,0.02921771]
[1680314523876,3.2078,1840.1,1839.5,0.33694307]
[1680314524375,1.0,1840.4,1839.5,0.33694307]
[1680314524376,3.2078,1840.0,1839.5,0.33694307]
[1680314524576,3.2078,1840.0,1839.6,3.2078]
[1680314524775,3.2078,1840.0,1839.5,0.33694307]
[1680314524968,3.2078,1840.0,1839.7,5.85496093]
[1680314525169,3.2078,1840.0,1839.3,3.2078]
[1680314525572,3.2078,1840.0,1839.2,1.0]
[1680314525772,3.2078,1840.4,1839.4,6.05799284]
[1680314525975,1.53435223,1840.5,1840.0,3.2078]
[1680314525976,3.2078,1840.5,1840.0,3.2078]
[1680314526371,3.2078,1840.7,1840.2,3.2078]
[1680314526578,3.2078,1840.7,1840.1,5.9367186]
[1680314526873,3.2078,1840.7,1840.0,0.1217116]
[1680314527083,3.2078,1840.7,1840.0,1.1217116]
[1680314527472,3.2078,1840.2,1839.3,3.2078]
[1680314527669,3.2078,1839.9,1839.1,8.4709532]
[1680314528079,3.2078,1839.9,1839.2,6.27789592]
[1680314528477,3.2078,1839.7,1839.2,6.27789592]
[1680314529179,3.2078,1839.7,1839.3,3.2078]
[1680314529372,1.0,1839.6,1839.2,6.27789592]
[1680314529572,3.2078,1839.5,1839.1,5.2631532]
[1680314529976,3.2078,1839.3,1839.1,5.2631532]
[1680314530176,3.2078,1839.3,1839.1,0.4453532]
[1680314530384,1.0,1839.2,1839.1,0.4453532]
[1680314530571,3.2078,1839.3,1838.7,3.2078]
[1680314530873,5.0,1839.5,1838.9,3.2078]
[1680314530874,3.2078,1839.5,1838.9,3.2078]
[1680314531276,3.2078,1839.5,1839.0,5.80104489]
[1680314531586,3.2078,1839.5,1838.8,3.45679772]
[1680314531976,3.2078,1839.5,1838.8,0.24899772]
[1680314532483,3.2078,1839.3,1838.8,0.24899772]
[1680314532784,3.2078,1839.3,1838.9,5.86463239]
[1680314533085,3.2078,1839.3,1839.0,1.0]
[1680314533377,3.2078,1839.3,1838.7,1.0]
[1680314533577,3.2078,1839.3,1839.1,6.00891517]
[1680314533776,3.2078,1839.3,1838.6,3.2078]
[1680314534478,3.2078,1839.3,1838.7,6.25358595]
[1680314535287,3.2078,1839.1,1838.7,6.25358595]
[1680314536574,3.2078,1839.1,1838.6,3.2078]
[1680314537088,3.2078,1838.9,1838.3,10.2307]
[1680314537288,1.0,1838.8,1838.3,5.1499]
[1680314537480,3.2078,1838.7,1838.3,5.1499]
[1680314537680,3.2078,1838.7,1838.4,5.95016332]
[1680314538074,3.2078,1838.7,1838.5,0.1074812]
[1680314538376,3.2078,1838.7,1838.2,3.2078]
[1680314538981,3.2078,1838.9,1838.2,3.2078]
[1680314539184,3.2078,1838.9,1838.3,7.15274233]
[1680314539385,3.2078,1838.9,1838.3,6.15274233]
[1680314539681,3.2078,1838.7,1838.3,6.15274233]
[1680314539982,3.2078,1838.5,1838.0,3.2078]
[1680314540178,3.2078,1838.8,1838.0,3.2078]
[1680314540378,3.2078,1838.6,1837.9,4.7754]
[1680314540582,3.2078,1838.6,1838.1,6.1347008]
[1680314540783,3.2078,1838.4,1838.1,6.1347008]
[1680314540981,3.2078,1838.4,1838.0,5.77846992]
[1680314541189,3.2078,1839.0,1838.2,3.2078]
[1680314541391,13.05406847,1838.9,1838.3,1.0]
[1680314541681,3.2078,1838.6,1838.3,5.97493281]
[1680314541875,3.2078,1838.6,1837.9,4.7754]
[1680314542276,8.157,1838.8,1837.9,4.7754]
[1680314542277,3.2078,1838.4,1837.9,4.7754]
[1680314542583,3.2078,1838.4,1838.0,6.05588292]
[1680314543786,3.2078,1838.2,1838.0,6.05588292]
[1680314543994,3.2078,1838.2,1837.6,8.3965]
[1680314544180,3.2078,1838.1,1837.4,8.2554]
[1680314544489,3.2078,1837.9,1837.4,8.2554]
[1680314545192,0.56262267,1838.6,1837.4,8.2554]
[1680314545193,0.55773036,1838.7,1837.8,3.2078]
[1680314545493,3.76346248,1838.8,1838.2,3.2078]
[1680314545691,3.2078,1838.6,1838.2,3.2078]
[1680314545887,3.2078,1838.6,1838.0,3.2078]
[1680314546191,0.55566248,1838.8,1838.2,3.2078]
[1680314546491,3.2078,1838.9,1838.1,1.0]
[1680314546684,3.2078,1838.9,1838.2,3.2078]
[1680314547293,3.2078,1838.9,1838.3,5.73353343]
[1680314547988,1.0,1838.8,1838.3,5.73353343]
[1680314548284,3.2078,1838.7,1838.3,5.73353343]
[1680314548483,3.2078,1838.9,1838.3,5.73353343]
[1680314548689,0.56262267,1839.7,1838.8,3.2078]
[1680314548894,0.56262267,1839.9,1839.5,3.2078]
[1680314549283,3.77042267,1840.1,1839.5,3.2078]
[1680314549989,3.77042267,1840.1,1839.1,3.2078]
[1680314549990,13.04812827,1840.0,1839.1,3.2078]
[1680314550190,4.77042267,1839.9,1839.1,3.2078]
[1680314550491,13.61075094,1839.8,1839.1,3.2078]
[1680314550691,5.05480878,1839.9,1839.1,3.2078]
[1680314550692,0.56262267,1839.9,1839.2,6.07146248]
[1680314550991,0.56262267,1839.9,1839.3,3.2078]
[1680314551584,13.04892489,1839.8,1839.1,3.2078]
[1680314551786,13.61154756,1839.8,1839.1,3.2078]
[1680314552094,0.56262267,1839.8,1838.9,4.2078]
[1680314552297,0.56262267,1839.9,1839.2,6.15976166]
[1680314552490,0.56262267,1839.9,1839.3,4.2078]
[1680314552685,0.56262267,1839.9,1839.3,3.2078]
[1680314552888,0.56262267,1839.9,1839.4,1.12159768]
[1680314553290,3.77042267,1839.9,1839.4,1.12159768]
[1680314553491,3.77042267,1839.9,1839.4,0.87586385]
[1680314553690,0.56262267,1839.9,1839.4,0.87586385]
[1680314553994,0.56262267,1840.0,1839.4,0.87586385]
[1680314554289,0.56262267,1840.0,1839.5,0.28153265]
[1680314554692,1.56262267,1840.0,1839.5,0.28153265]
[1680314554893,3.2078,1839.9,1839.5,0.28153265]
[1680314555286,0.56262267,1840.0,1839.5,0.28153265]
[1680314555687,0.56262267,1840.0,1839.5,3.48933265]
[1680314555887,0.56262267,1840.2,1839.7,3.2078]
[1680314556093,3.77042267,1840.3,1839.8,1.0]
[1680314556291,3.77042267,1840.3,1839.8,6.24607599]
[1680314556797,3.77042267,1840.3,1839.8,5.24607599]
[1680314557198,3.77042267,1840.3,1839.9,3.2078]
[1680314557391,3.77042267,1840.3,1839.8,5.24607599]
[1680314557697,3.77042267,1840.3,1840.0,1.15698029]
[1680314557899,3.77042267,1840.3,1839.6,5.0017]
[1680314557900,3.2078,1840.1,1839.6,5.0017]
[1680314558093,3.77042267,1840.1,1839.5,0.28153265]
[1680314558789,0.56262267,1840.0,1839.6,6.06527335]
[1680314558998,0.56262267,1840.0,1839.5,0.28153265]
[1680314559303,0.56262267,1840.0,1839.6,6.14459991]
[1680314559604,4.34056921,1840.2,1839.7,1.0]
[1680314559788,1.70937416,1840.6,1839.7,1.0]
[1680314559789,1e-08,1840.4,1840.0,3.2078]
[1680314560300,1e-08,1840.4,1840.1,1.374815]
[1680314560499,1e-08,1840.4,1840.1,0.374815]
[1680314561499,4.05563926,1840.4,1839.8,3.2078]
[1680314561696,0.84783925,1840.4,1839.6,3.2078]
[1680314561898,0.84783925,1840.4,1839.8,3.2078]
[1680314562201,0.84783925,1840.4,1839.9,0.17881619]
[1680314562395,0.84783925,1840.3,1839.9,0.17881619]
[1680314562590,0.84783925,1840.4,1840.0,3.2078]
[1680314562892,0.84783925,1840.5,1840.0,3.2078]
[1680314563095,0.84783925,1840.5,1840.1,5.97935366]
[1680314565401,0.84783925,1840.5,1840.0,3.2078]
[1680314565605,4.05563925,1840.5,1840.0,3.2078]
[1680314567098,0.84783925,1840.4,1839.8,3.2078]
[1680314567300,4.05563925,1840.3,1839.5,3.48933265]
[1680314567501,4.05563925,1840.3,1839.6,1.0]
[1680314567799,4.05563925,1840.3,1839.6,6.69123239]
[1680314568099,4.05563925,1840.3,1839.7,3.49688598]
[1680314568300,0.84783925,1840.4,1839.7,3.49688598]
[1680314568497,0.84783925,1840.3,1839.8,6.22707186]
[1680314568698,4.05563925,1840.3,1839.8,6.22707186]
[1680314569410,0.84783925,1840.3,1839.8,6.22707186]
[1680314569703,0.84783925,1840.4,1839.9,3.2078]
[1680314569892,4.05563925,1840.5,1840.0,1.0]
[1680314570100,4.05563925,1840.5,1840.0,6.48733757]
[1680314570301,9.53363925,1840.5,1839.7,0.28908598]
[1680314570603,1.0,1840.2,1839.7,0.28908598]
[1680314571004,5.05563925,1840.3,1839.7,0.28908598]
[1680314571802,0.11403925,1840.6,1840.1,3.2078]
[1680314572099,4.87607438,1840.8,1840.3,3.2078]
[1680314572100,3.85734442,1840.8,1840.3,3.2078]
[1680314572295,3.85734442,1840.8,1840.2,7.13528183]
[1680314572296,3.85734442,1840.8,1840.5,3.2078]
[1680314572497,3.85734442,1840.8,1840.3,3.2078]
[1680314574604,3.85734442,1840.8,1840.5,3.2078]
[1680314574905,0.53550517,1840.8,1840.6,1.0]
[1680314575106,4.95580185,1841.0,1840.5,7.5528]
[1680314575306,4.95580185,1841.0,1840.6,6.27330429]
[1680314575506,5.50480945,1841.0,1840.5,7.5528]
[1680314576103,2.29700945,1841.0,1840.5,7.5528]
[1680314576704,2.29700945,1841.0,1840.6,4.345]
[1680314577113,2.1829702,1841.0,1840.7,3.2078]
[1680314577306,0.11403925,1841.2,1840.8,4.311]
[1680314577903,1.64669175,1841.2,1841.0,13.0308]
[1680314578111,1.37701014,1841.5,1841.0,13.0308]
[1680314578112,0.53095474,1841.5,1841.0,13.0308]
[1680314578413,0.8460554,1841.7,1841.4,7.5528]
[1680314578616,0.54732182,1841.7,1841.4,7.5528]
[1680314578909,0.8460554,1841.8,1841.4,7.5528]
[1680314579416,0.1,1842.0,1841.7,4.311]
[1680314579621,0.1,1842.0,1841.9,3.2078]
[1680314580810,0.1,1842.0,1841.9,4.345]
[1680314581012,3.2078,1842.5,1842.0,1.0]
[1680314581013,4.0538554,1842.5,1842.0,1.0]
[1680314581214,0.8460554,1842.8,1842.4,7.5528]
[1680314581415,3.3078,1843.0,1842.7,4.345]
[1680314581416,0.9460554,1843.0,1842.7,4.345]
[1680314581712,0.1,1843.0,1842.8,3.28468578]
[1680314581914,0.1,1843.0,1842.9,5.345]
[1680314582307,0.1,1843.0,1842.8,3.28468578]
[1680314582308,0.1,1843.0,1842.8,3.2078]
[1680314582510,0.1,1843.0,1842.7,4.345]
[1680314582907,0.1,1843.0,1842.8,0.7618632]
[1680314583114,14.07110046,1842.9,1842.1,3.2078]
[1680314583313,3.71848631,1842.6,1841.9,3.2078]
[1680314583519,23.70009961,1842.5,1842.2,0.41508895]
[1680314583710,3.2078,1842.3,1841.5,3.2078]
[1680314583910,3.2078,1841.9,1841.6,0.27551684]
[1680314584515,3.2078,1841.9,1841.3,3.2078]
[1680314584817,1.0,1841.8,1841.3,3.2078]
[1680314585118,3.2078,1841.7,1841.3,3.2078]
[1680314585319,3.2078,1841.7,1840.9,9.1662]
[1680314585320,3.2078,1841.7,1841.1,3.2078]
[1680314585617,6.478,1841.6,1841.1,3.2078]
[1680314585817,1.0,1841.6,1841.1,3.2078]
[1680314586018,3.2078,1841.5,1840.9,3.2078]
[1680314586522,3.2078,1841.3,1840.9,3.2078]
[1680314586912,1.0,1841.2,1840.9,3.2078]
[1680314587621,3.2078,1841.3,1840.9,3.2078]
[1680314587823,1.0,1841.2,1840.9,3.2078]
[1680314588611,5.05137526,1841.8,1841.0,5.478]
[1680314588810,3.2078,1841.9,1841.0,1.0]
[1680314589218,6.387088,1842.1,1840.9,11.3008]
[1680314589219,3.2078,1841.7,1840.9,11.3008]
[1680314589418,3.2078,1841.5,1840.7,3.2078]
[1680314589924,3.2078,1841.3,1840.7,3.2078]
[1680314590717,3.2078,1841.3,1840.8,0.10781083]
[1680314591423,1.0,1841.2,1840.8,0.10781083]
[1680314591814,0.84357526,1841.7,1840.9,3.2078]
[1680314592019,13.03836392,1841.6,1840.9,3.2078]
[1680314592214,16.24616392,1841.6,1840.9,3.2078]
[1680314592413,16.24616392,1841.6,1840.8,0.10781083]
[1680314592414,13.03836392,1841.5,1840.8,0.10781083]
[1680314592619,13.03836392,1841.5,1840.9,3.2078]
[1680314593526,13.03836392,1841.4,1840.9,3.2078]
[1680314593818,4.2078,1841.6,1840.9,3.2078]
[1680314594022,13.03822584,1841.5,1840.9,3.2078]
[1680314594416,8.6858,1841.4,1840.8,0.10781083]
[1680314594627,1.0,1841.2,1840.8,0.10781083]
[1680314594817,13.03822584,1841.1,1840.8,0.10781083]
[1680314595216,13.03822584,1841.1,1840.8,5.58581083]
[1680314595429,3.2078,1841.7,1841.0,8.116]
[1680314595723,3.2078,1841.7,1840.9,3.2078]
[1680314595724,4.05137526,1841.7,1840.9,3.2078]
[1680314596114,1.0,1841.6,1840.9,3.2078]
[1680314596324,4.05137526,1841.5,1840.8,0.10781083]
[1680314596625,3.2078,1841.3,1840.8,0.10781083]
[1680314597122,1.0,1841.2,1840.8,0.10781083]
[1680314597322,3.2078,1841.1,1840.8,0.10781083]
[1680314597526,8.6858,1840.9,1840.1,3.2078]
[1680314597827,3.2078,1840.6,1840.1,3.2078]
[1680314598017,3.2078,1840.6,1840.2,0.0365048]
[1680314598224,3.2078,1840.6,1840.1,3.2078]
[1680314599225,0.84357526,1840.9,1840.1,3.2078]
[1680314599417,9.22876921,1841.1,1840.7,3.2078]
[1680314599418,0.84357526,1841.1,1840.7,3.2078]
[1680314599721,4.05137526,1841.2,1840.5,3.2078]
[1680314600122,4.05137526,1841.2,1840.3,8.146]
[1680314600123,3.2078,1840.8,1840.1,3.2078]
[1680314600323,5.478,1840.8,1840.1,3.2078]
[1680314600719,6.478,1840.7,1840.1,3.2078]
[1680314600922,8.6858,1840.7,1840.1,3.2078]
[1680314601730,3.2078,1840.7,1840.1,3.2078]
[1680314602430,0.84357526,1841.0,1840.3,3.2078]
[1680314602731,3.2078,1840.9,1840.3,3.2078]
[1680314603430,0.84357526,1841.0,1840.5,3.2078]
[1680314603830,4.05137526,1841.0,1840.2,3.2078]
[1680314604026,0.84357526,1840.9,1840.2,3.2078]
[1680314604225,5.478,1840.8,1840.2,3.2078]
[1680314604428,8.6858,1840.8,1840.2,3.2078]
[1680314604724,6.478,1840.7,1840.2,3.2078]
[1680314604925,0.05046689,1840.6,1840.2,3.2078]
[1680314605233,9.6858,1840.6,1840.2,3.2078]
[1680314605434,8.6858,1840.6,1840.2,3.2078]
[1680314605829,9.52937526,1840.6,1840.2,3.2078]
[1680314606027,8.6858,1840.6,1840.2,3.2078]
[1680314606331,9.52937526,1840.6,1840.2,3.2078]
[1680314607027,17.67537526,1840.6,1840.2,3.2078]
[1680314609024,7.36013315,1840.5,1840.0,3.2078]
[1680314609335,5.478,1840.2,1839.8,3.2078]
[1680314609635,1.0,1840.1,1839.8,3.2078]
[1680314609937,5.478,1840.2,1839.8,3.2078]
[1680314610127,1.0,1840.1,1839.8,3.2078]
[1680314610532,3.2078,1840.0,1839.6,3.2078]
[1680314613025,1.14273668,1839.9,1839.6,3.2078]
[1680314613228,0.14273668,1839.9,1839.6,3.2078]
[1680314613624,0.84357526,1840.2,1839.6,3.2078]
[1680314613828,1.0,1840.1,1839.6,3.2078]
[1680314614026,4.2078,1840.1,1839.6,3.2078]
[1680314614433,3.2078,1840.1,1839.6,3.2078]
[1680314614737,8.98957526,1840.3,1839.6,3.2078]
[1680314614932,1.0,1840.2,1839.6,3.2078]
[1680314615129,0.84357526,1840.2,1839.6,3.2078]
[1680314615636,1.0,1840.1,1839.6,3.2078]
[1680314616132,8.089,1839.8,1839.2,3.2078]
[1680314616530,1.0,1839.7,1839.2,3.2078]
[1680314617031,3.2078,1839.6,1839.2,3.2078]
[1680314617830,8.146,1839.5,1839.0,3.2078]
[1680314619732,8.146,1839.5,1838.8,3.2078]
[1680314619938,11.3538,1839.5,1838.8,3.2078]
[1680314620332,8.089,1839.8,1839.0,3.2078]
[1680314620535,1.0,1839.7,1839.0,3.2078]
[1680314620726,8.089,1839.8,1839.2,3.2078]
[1680314622032,1.0,1839.7,1838.9,1.0]
[1680314622238,1.0,1839.7,1838.9,3.2078]
[1680314622732,1.37765313,1840.1,1839.3,3.2078]
[1680314622927,25.0118,1840.2,1839.5,3.2078]
[1680314623133,11.3038,1840.2,1839.5,3.2078]
[1680314624139,3.2078,1840.0,1839.3,3.2078]
[1680314624644,3.2078,1840.0,1839.5,3.2078]
[1680314625041,8.096,1840.2,1839.5,3.2078]
[1680314625237,3.2078,1840.3,1839.5,3.2078]
[1680314625641,3.2078,1840.1,1839.5,3.2078]
[1680314626033,8.096,1840.2,1839.5,3.2078]
[1680314627444,3.2078,1840.1,1839.5,3.2078]
[1680314628049,0.14779863,1840.0,1839.5,3.2078]
[1680314628343,8.23679863,1840.0,1839.5,3.2078]
[1680314628741,0.14779863,1840.0,1839.5,3.2078]
[1680314628941,1.14779863,1840.0,1839.5,3.2078]
[1680314629142,9.29379863,1840.0,1839.1,4.2078]
[1680314629444,3.2078,1839.9,1839.1,3.2078]
[1680314630350,3.2078,1839.9,1839.3,3.2078]
[1680314631133,8.6858,1839.9,1839.3,3.2078]
[1680314631333,8.6858,1839.9,1838.9,1.0]
[1680314631334,9.146,1839.8,1838.9,4.2078]
[1680314631539,4.2078,1839.7,1838.9,3.2078]
[1680314631739,3.2078,1839.7,1839.1,3.2078]
[1680314631940,11.3538,1839.8,1839.1,3.2078]
[1680314632540,0.69100745,1840.0,1839.5,3.2078]
[1680314632747,0.14779863,1840.0,1839.5,3.2078]
[1680314632942,8.98957526,1840.3,1839.5,3.2078]
[1680314633141,3.2078,1840.4,1839.9,3.2078]
[1680314633845,11.3538,1840.4,1839.7,3.2078]
[1680314634039,8.146,1840.1,1839.4,5.1799]
[1680314634239,8.146,1840.1,1839.4,3.2078]
[1680314636153,3.2078,1840.0,1839.4,3.2078]
[1680314637349,3.2078,1840.0,1839.2,3.2078]
[1680314637545,8.146,1839.7,1839.0,6.71758733]
[1680314637856,8.146,1839.7,1838.9,3.2078]
[1680314638060,8.146,1839.7,1839.1,3.2078]
[1680314638752,3.2078,1839.6,1839.1,3.2078]
[1680314639345,3.2078,1839.4,1838.9,3.2078]
[1680314639553,8.146,1839.5,1838.9,3.2078]
[1680314640457,12.19737526,1839.8,1839.1,3.2078]
[1680314641258,0.84357526,1839.9,1839.3,3.2078]
[1680314641855,4.05137526,1840.0,1839.3,3.2078]
[1680314642251,0.84357526,1839.8,1839.3,3.2078]
[1680314642756,0.84357526,1839.9,1839.4,1.0]
[1680314642962,0.07247502,1839.7,1839.5,3.2078]
[1680314643163,0.84357526,1840.0,1839.5,3.2078]
[1680314644965,0.84357526,1839.9,1839.3,3.2078]
[1680314645263,0.84357526,1839.9,1839.4,1.0]
[1680314645460,0.84357526,1839.9,1839.3,3.2078]
[1680314646560,0.84357526,1839.7,1839.1,1.0]
[1680314646759,5.05137526,1839.7,1839.0,3.2078]
[1680314646962,0.95189674,1839.6,1839.0,3.2078]
[1680314647261,4.05137526,1839.5,1839.0,3.2078]
[1680314647467,3.2078,1839.3,1838.8,3.2078]
[1680314647665,3.2078,1839.3,1838.8,4.2078]
[1680314647860,3.2078,1839.3,1838.8,3.2078]
[1680314649367,0.84357526,1839.4,1839.0,3.2078]
[1680314649761,0.84357526,1839.5,1839.0,3.2078]
[1680314650864,0.84357526,1839.5,1838.8,3.77253417]
[1680314651268,0.84357526,1839.4,1838.8,3.77253417]
[1680314651466,0.84357526,1839.4,1839.0,3.2078]
[1680314652059,6.32157526,1839.4,1839.0,3.2078]
[1680314652468,4.349,1839.3,1839.0,3.2078]
[1680314653863,5.19257526,1839.3,1839.0,3.2078]
[1680314654064,4.349,1839.3,1839.0,3.2078]
[1680314654259,5.19257526,1839.3,1839.0,3.2078]
[1680314654461,4.349,1839.3,1839.0,3.2078]
[1680314654665,5.478,1839.2,1839.0,3.2078]
[1680314654872,5.19257526,1839.1,1838.8,3.2078]
[1680314655075,4.349,1838.9,1838.8,3.2078]
[1680314656568,4.349,1838.9,1838.6,3.77253417]
[1680314656771,5.19257526,1839.1,1838.6,3.77253417]
[1680314656968,0.84357526,1839.2,1838.9,1.0]
[1680314657172,0.84357526,1839.3,1839.0,3.2078]
[1680314657669,0.84357526,1839.4,1839.2,3.2078]
[1680314658070,0.05883484,1839.3,1839.2,3.2078]
[1680314658263,0.84357526,1839.4,1839.2,3.2078]
[1680314658472,0.84357526,1839.5,1839.2,3.2078]
[1680314658863,0.84357526,1839.4,1839.2,3.2078]
[1680314659065,0.84357526,1839.5,1839.2,3.2078]
[1680314659266,1.40655779,1839.8,1839.5,5.478]
[1680314659467,1.42224639,1840.1,1839.7,8.6858]
[1680314659669,1.42224639,1840.4,1840.0,3.2078]
[1680314659874,1.42224639,1840.4,1840.2,3.2078]
[1680314660772,1.42224639,1840.4,1840.1,0.07534073]
[1680314660976,1.42224639,1840.4,1840.0,3.2078]
[1680314661876,1.42224639,1840.5,1840.2,3.2078]
[1680314664679,5.77124639,1840.5,1840.2,3.2078]
[1680314664882,4.349,1840.5,1840.2,3.2078]
[1680314665275,4.349,1840.5,1840.0,3.2078]
[1680314665476,4.349,1840.5,1840.1,1.0]
[1680314665782,4.349,1840.5,1840.0,3.2078]
[1680314667582,1.42224639,1840.7,1840.4,3.2078]
[1680314667790,5.73624639,1840.8,1840.4,3.2078]
[1680314668684,4.314,1840.8,1840.4,3.2078]
[1680314670485,4.32,1840.5,1840.0,3.2078]
[1680314670782,4.32,1840.5,1839.8,3.2078]
[1680314670976,1.0,1840.4,1840.0,3.2078]
[1680314671285,4.32,1840.5,1840.0,3.2078]
[1680314672484,4.349,1840.8,1840.4,3.2078]
[1680314673081,4.349,1840.8,1840.5,0.14727964]
[1680314673276,4.349,1840.8,1840.4,3.2078]
[1680314673482,4.349,1840.8,1840.6,0.1472865]
[1680314673680,4.349,1840.8,1840.4,3.2078]
[1680314674081,4.349,1840.8,1840.5,0.14729283]
[1680314674484,9.793,1840.6,1840.4,3.2078]
[1680314674685,4.349,1840.5,1840.1,3.2078]
[1680314675185,4.349,1840.5,1840.2,0.05246592]
[1680314675483,4.32,1840.6,1840.1,3.2078]
[1680314677083,1.0,1840.5,1840.1,3.2078]
[1680314677295,5.349,1840.5,1840.1,3.2078]
[1680314677882,4.349,1840.5,1840.1,3.2078]
[1680314678788,5.314,1840.7,1840.1,3.2078]
[1680314678990,4.314,1840.7,1840.3,3.2078]
[1680314679589,4.314,1840.7,1840.4,0.04787639]
[1680314679889,0.56647742,1840.6,1840.4,0.04787639]
[1680314680091,4.88147742,1840.5,1840.4,0.04787639]
[1680314680390,4.88147742,1840.5,1840.1,3.2078]
[1680314680885,4.88147742,1840.5,1840.2,0.04789348]
[1680314681286,4.88147742,1840.5,1840.1,3.2078]
[1680314681981,4.88147742,1840.5,1839.9,3.2078]
[1680314682289,4.349,1840.3,1839.7,3.2078]
[1680314682895,0.56647742,1840.3,1839.9,3.2078]
[1680314683091,0.56647742,1840.4,1840.1,3.2078]
[1680314683391,0.56647742,1840.5,1840.1,3.2078]
[1680314683594,0.56647742,1840.6,1840.1,3.2078]
[1680314683790,0.56647742,1840.6,1840.3,3.2078]
[1680314685693,0.56647742,1840.6,1840.1,3.2078]
[1680314685892,4.349,1840.5,1840.1,3.2078]
[1680314686697,4.349,1840.5,1840.0,0.04792613]
[1680314686698,4.349,1840.5,1840.3,3.2078]
[1680314688198,4.349,1840.5,1840.4,0.04957738]
[1680314688591,4.349,1840.5,1840.3,3.2078]
[1680314689101,4.349,1840.5,1840.4,0.04959018]
[1680314689497,4.349,1840.5,1840.3,3.2078]
[1680314689801,4.349,1840.5,1840.4,0.04960002]
[1680314690197,4.349,1840.5,1840.1,3.2078]
[1680314690395,4.349,1840.3,1839.9,3.2078]
[1680314690596,4.349,1840.3,1840.2,0.04960994]
[1680314690799,4.349,1840.3,1839.9,3.2078]
[1680314691001,4.349,1840.3,1840.1,3.2078]
[1680314694698,4.91547742,1840.3,1840.1,3.2078]
[1680314694897,4.91547742,1840.3,1839.9,3.2078]
[1680314697509,4.32,1840.0,1839.9,3.2078]
[1680314697702,4.32,1840.0,1839.6,3.2078]
[1680314698605,4.32,1840.0,1839.8,3.2078]
[1680314700007,4.88647742,1840.0,1839.8,3.2078]
[1680314700705,0.56647742,1840.0,1839.6,3.2078]
[1680314700906,4.349,1839.7,1839.6,3.2078]
[1680314701406,4.349,1839.7,1839.4,3.2078]
[1680314701808,0.56647742,1839.6,1839.4,3.2078]
[1680314703315,0.56647742,1839.7,1839.4,3.2078]
[1680314703611,0.56647742,1839.7,1839.6,3.2078]
[1680314704706,0.56647742,1839.7,1839.4,3.2078]
[1680314704913,4.91814992,1839.6,1839.4,3.2078]
[1680314705208,0.56914992,1839.5,1839.4,3.2078]
[1680314705613,0.56914992,1839.5,1839.1,0.56473417]
[1680314705614,5.478,1839.5,1839.1,0.56473417]
[1680314705911,0.56923875,1839.3,1839.0,3.2078]
[1680314706309,4.32,1839.4,1839.0,3.2078]
[1680314706310,4.4596155,1839.2,1839.0,3.2078]
[1680314708908,4.314,1839.1,1839.0,3.2078]
[1680314710507,4.42167877,1839.1,1839.0,2.65778779]
[1680314711217,0.10767877,1839.1,1839.0,2.65778779]
[1680314712514,2.28267877,1839.1,1839.0,2.65778779]
[1680314714616,3.28267877,1839.1,1839.0,2.65778779]
[1680314714816,2.28267877,1839.1,1839.0,2.65778779]
[1680314715013,3.28267877,1839.1,1838.8,3.2078]
[1680314715210,2.162,1838.9,1838.8,3.2078]
[1680314717320,7.64,1838.9,1838.8,3.2078]
[1680314717615,7.64,1838.9,1838.2,1.74978522]
[1680314717616,2.162,1838.8,1838.6,3.2078]
[1680314717815,3.175,1838.7,1838.6,3.2078]
[1680314718421,2.175,1838.7,1838.6,3.2078]
[1680314719122,3.175,1838.7,1838.6,3.2078]